bitfinex/quotes_BTCUSD_20241110
["timestamp","ask_amount","ask_price","bid_price","bid_amount"]
[1731261442266,0.077,80522.0,80494.0,0.1]
[1731261442674,0.077,80522.0,80494.0,0.09950004]
[1731261442876,0.1302,80521.0,80464.0,0.005]
[1731261443074,0.1302,80521.0,80471.0,0.005]
[1731261443498,0.000704,80498.0,80471.0,0.005]
[1731261443706,0.000704,80498.0,80472.0,0.005]
[1731261444076,0.000704,80498.0,80471.0,0.005]
[1731261444537,0.000704,80498.0,80470.0,0.01]
[1731261444748,0.000704,80498.0,80471.0,0.005]
[1731261445279,0.12594221,80497.0,80485.0,0.1]
[1731261445896,0.12594221,80491.0,80485.0,0.1]
[1731261446127,0.12594221,80491.0,80480.0,0.1]
[1731261446491,0.12594221,80486.0,80471.0,0.1]
[1731261446641,0.12594221,80486.0,80480.0,0.1]
[1731261446848,0.12594221,80486.0,80471.0,0.1]
[1731261447061,0.12594221,80486.0,80379.0,0.12134761]
[1731261447062,0.12594221,80486.0,80477.0,0.1]
[1731261447974,0.12594221,80486.0,80479.0,0.1]
[1731261449233,0.0015056,80485.0,80479.0,0.1]
[1731261449565,0.12594221,80484.0,80463.0,0.1]
[1731261449792,0.0015056,80483.0,80477.0,0.1]
[1731261449997,0.12594221,80482.0,80477.0,0.1]
[1731261450177,0.0015056,80481.0,80477.0,0.1]
[1731261450331,0.12594221,80480.0,80477.0,0.1]
[1731261450536,0.0015056,80479.0,80477.0,0.1]
[1731261450739,0.12594221,80478.0,80477.0,0.1]
[1731261450941,0.12594221,80478.0,80463.0,0.105]
[1731261451266,0.0015056,80477.0,80473.0,0.1]
[1731261451447,0.12594221,80476.0,80473.0,0.1]
[1731261451640,0.0015056,80475.0,80473.0,0.1]
[1731261451859,0.18638518,80474.0,80473.0,0.07066028]
[1731261452061,0.12594221,80474.0,80452.0,0.18638518]
[1731261452259,0.01093582,80481.0,80456.0,0.18638518]
[1731261452461,0.31658518,80501.0,80457.0,0.18638518]
[1731261452658,0.01863852,80490.0,80462.0,0.18638518]
[1731261452940,0.18638518,80482.0,80446.0,0.18638518]
[1731261453146,0.18638518,80481.0,80450.0,0.18638518]
[1731261453353,0.18638518,80481.0,80452.0,0.18638518]
[1731261453562,0.18638518,80472.0,80453.0,0.18638518]
[1731261453691,0.18638518,80463.0,80425.0,0.18638518]
[1731261453907,0.1302,80462.0,80441.0,0.18638518]
[1731261454108,0.18638518,80456.0,80425.0,0.18638518]
[1731261454343,0.18638518,80456.0,80434.0,0.18638518]
[1731261454565,0.18638518,80456.0,80416.0,0.000843]
[1731261454566,0.01863852,80455.0,80416.0,0.000843]
[1731261454766,0.28638518,80472.0,80416.0,0.000843]
[1731261454767,0.000704,80540.0,80449.0,0.0483]
[1731261455031,0.000704,80540.0,80488.0,0.01]
[1731261455168,0.000704,80540.0,80495.0,0.005]
[1731261455370,0.000704,80540.0,80492.0,0.01]
[1731261455570,0.000704,80540.0,80493.0,0.005]
[1731261455845,0.000704,80540.0,80492.0,0.005]
[1731261456024,0.000704,80540.0,80495.0,0.005]
[1731261456363,0.000704,80540.0,80483.0,0.1483]
[1731261456364,0.000704,80540.0,80513.0,0.1]
[1731261456755,0.000704,80540.0,80526.0,0.1]
[1731261457393,0.000704,80540.0,80515.0,0.005]
[1731261457578,0.000704,80540.0,80514.0,0.0483]
[1731261457764,0.000704,80540.0,80515.0,0.005]
[1731261458801,0.000704,80540.0,80514.0,0.0483]
[1731261459035,0.000704,80540.0,80528.0,0.1]
[1731261459206,0.000704,80540.0,80514.0,0.0483]
[1731261459441,0.000704,80540.0,80528.0,0.1]
[1731261459442,0.12594221,80530.0,80528.0,0.1]
[1731261459887,0.12594221,80530.0,80529.0,0.1]
[1731261460035,0.12594221,80530.0,80529.0,0.06978149]
[1731261460248,0.000704,80540.0,80529.0,0.06978149]
[1731261460849,0.1862683,80530.0,80510.0,0.005]
[1731261461051,0.1862683,80530.0,80511.0,0.1862683]
[1731261461052,0.18791544,80530.0,80511.0,0.1862683]
[1731261461226,0.18791544,80530.0,80513.0,0.1862683]
[1731261461640,0.09804267,80530.0,80524.0,0.1862683]
[1731261461873,0.09804267,80530.0,80498.0,0.01]
[1731261461874,0.28431097,80530.0,80509.0,0.005]
[1731261462113,0.09804267,80530.0,80513.0,0.1862683]
[1731261462314,0.28431097,80530.0,80513.0,0.1862683]
[1731261462488,0.28431097,80530.0,80514.0,0.1]
[1731261462846,0.28431097,80530.0,80498.0,0.005]
[1731261462847,0.1862683,80519.0,80498.0,0.005]
[1731261463091,0.12594221,80516.0,80510.0,0.1862683]
[1731261463294,0.12594221,80516.0,80488.0,0.005]
[1731261463493,0.12594221,80516.0,80504.0,0.1862683]
[1731261463692,0.1862683,80515.0,80484.0,0.005]
[1731261463874,0.1862683,80515.0,80481.0,0.1245]
[1731261463875,0.1862683,80515.0,80496.0,0.1862683]
[1731261464945,0.1862683,80515.0,80497.0,0.1]
[1731261465186,0.12594221,80498.0,80461.0,0.005]
[1731261465388,0.01862683,80514.0,80490.0,0.1862683]
[1731261465595,0.1862683,80503.0,80461.0,0.005]
[1731261465739,0.01862683,80514.0,80490.0,0.1862683]
[1731261465949,0.1862683,80501.0,80481.0,0.1862683]
[1731261466155,0.12594221,80493.0,80481.0,0.1862683]
[1731261466336,0.12594221,80493.0,80482.0,0.1]
[1731261466749,0.12594221,80493.0,80465.0,0.005]
[1731261466955,0.12594221,80493.0,80480.0,0.1]
[1731261467163,0.12594221,80481.0,80451.0,0.005]
[1731261467378,0.12594221,80481.0,80450.0,0.0463]
[1731261467379,0.12594221,80477.0,80450.0,0.0463]
[1731261467973,0.12594221,80475.0,80450.0,0.0463]
[1731261468813,0.12594221,80474.0,80450.0,0.0463]
[1731261469012,0.12594221,80474.0,80435.0,0.0789]
[1731261469212,0.12594221,80474.0,80435.0,0.0839]
[1731261469470,0.12594221,80474.0,80435.0,0.0789]
[1731261469644,0.12594221,80474.0,80436.0,0.005]
[1731261469864,0.12594221,80474.0,80435.0,0.0839]
[1731261470065,0.12594221,80474.0,80438.0,0.005]
[1731261470281,0.12594221,80474.0,80435.0,0.1789]
[1731261470624,0.12594221,80474.0,80435.0,0.163741]
[1731261470829,0.01259422,80473.0,80459.0,0.1862683]
[1731261471030,0.1862683,80483.0,80415.0,0.0478]
[1731261471031,0.1,80459.0,80415.0,0.0478]
[1731261471241,0.1,80459.0,80386.0,0.0478]
[1731261471242,0.0004,80458.0,80386.0,0.0478]
[1731261471445,0.2302,80453.0,80386.0,0.0478]
[1731261471643,0.1302,80451.0,80394.0,0.00276967]
[1731261471857,0.1304,80448.0,80394.0,0.00276965]
[1731261472081,0.1,80447.0,80393.0,0.00276965]
[1731261473149,0.1862683,80437.0,80408.0,0.1862683]
[1731261473349,0.1862683,80437.0,80409.0,0.1]
[1731261473574,0.1862683,80428.0,80409.0,0.1]
[1731261473989,0.1862683,80419.0,80409.0,0.1]
[1731261474200,0.12594221,80418.0,80404.0,0.1]
[1731261474613,0.12594221,80414.0,80404.0,0.1]
[1731261475345,0.1862683,80428.0,80394.0,0.005]
[1731261475733,0.1862683,80417.0,80399.0,0.1]
[1731261475903,0.27341134,80417.0,80399.0,0.1]
[1731261477107,0.27341134,80417.0,80404.0,0.1]
[1731261477519,0.1862683,80428.0,80397.0,0.005]
[1731261477719,0.15833428,80419.0,80400.0,0.1]
[1731261477973,0.15833428,80419.0,80400.0,0.11]
[1731261478591,0.15833428,80419.0,80401.0,0.005]
[1731261479062,0.1576233,80419.0,80401.0,0.005]
[1731261479677,0.12594221,80418.0,80408.0,0.1]
[1731261479804,0.12594221,80418.0,80397.0,0.005]
[1731261480010,0.1862683,80428.0,80409.0,0.1]
[1731261480210,0.1862683,80419.0,80409.0,0.1]
[1731261480801,0.12594221,80427.0,80409.0,0.1]
[1731261481211,0.1862683,80437.0,80415.0,0.1478]
[1731261481424,0.12594221,80436.0,80416.0,0.0814]
[1731261482404,0.1862683,80428.0,80416.0,0.0764]
[1731261482603,0.15716326,80436.0,80415.0,0.1478]
[1731261482604,0.12594221,80427.0,80415.0,0.0478]
[1731261482805,0.1862683,80426.0,80415.0,0.0478]
[1731261483153,0.1862683,80426.0,80402.0,0.0764]
[1731261483154,0.12594221,80425.0,80402.0,0.0764]
[1731261483289,0.12594221,80425.0,80411.0,0.1862683]
[1731261483491,0.1862683,80424.0,80402.0,0.0764]
[1731261483710,0.12594221,80423.0,80405.0,0.1862683]
[1731261484106,0.12594221,80423.0,80402.0,0.0764]
[1731261484311,0.12594221,80423.0,80404.0,0.1]
[1731261484738,0.12594221,80423.0,80416.0,0.000842]
[1731261485760,0.12594221,80423.0,80417.0,0.1862683]
[1731261485970,0.12594221,80423.0,80419.0,0.1862683]
[1731261486224,0.12594221,80423.0,80416.0,0.000842]
[1731261486972,0.6983,80435.0,80416.0,0.000842]
[1731261486973,0.12594221,80417.0,80416.0,0.000842]
[1731261488761,0.78543326,80417.0,80416.0,0.000842]
[1731261489716,0.91583326,80417.0,80392.0,0.001406]
[1731261489952,0.1304,80415.0,80409.0,0.1862683]
[1731261490125,0.1304,80413.0,80392.0,0.001406]
[1731261490324,0.6983,80414.0,80392.0,0.001406]
[1731261490325,0.1304,80411.0,80394.0,0.1862683]
[1731261490533,0.1304,80411.0,80379.0,0.0474]
[1731261490534,0.1304,80403.0,80361.0,0.0455]
[1731261490740,0.1304,80401.0,80361.0,0.0455]
[1731261491167,0.1304,80401.0,80361.0,0.0505]
[1731261491469,0.1304,80401.0,80361.0,0.0455]
[1731261491674,0.12594221,80387.0,80372.0,0.1]
[1731261492065,0.6983,80386.0,80371.0,0.1862683]
[1731261492306,0.31221051,80384.0,80361.0,0.0455]
[1731261492508,0.12594221,80384.0,80369.0,0.1862683]
[1731261492771,0.12594221,80370.0,80345.0,0.0455]
[1731261493005,0.12594221,80370.0,80363.0,0.1862683]
[1731261493006,0.25634221,80370.0,80363.0,0.1862683]
[1731261493201,0.12594221,80370.0,80354.0,0.1862683]
[1731261493424,0.12594221,80370.0,80332.0,0.005]
[1731261493633,0.1862683,80368.0,80349.0,0.1862683]
[1731261493803,0.12594221,80363.0,80330.0,0.0857]
[1731261494096,0.12594221,80352.0,80327.0,0.0455]
[1731261494301,0.12594221,80347.0,80338.0,0.1862683]
[1731261494546,0.12594221,80347.0,80327.0,0.0455]
[1731261495282,0.12594221,80343.0,80327.0,0.0455]
[1731261495876,0.12594221,80343.0,80336.0,0.1862683]
[1731261496101,0.12594221,80343.0,80330.0,0.1]
[1731261496331,0.12594221,80343.0,80327.0,0.0455]
[1731261496534,0.12594221,80343.0,80330.0,0.1]
[1731261496942,0.12594221,80343.0,80327.0,0.0455]
[1731261497600,0.12594221,80343.0,80330.0,0.1]
[1731261497821,0.1862683,80359.0,80330.0,0.1]
[1731261498031,0.1862683,80347.0,80330.0,0.1]
[1731261498242,0.00186621,80363.0,80327.0,0.0505]
[1731261498243,0.00186621,80363.0,80347.0,0.1]
[1731261498442,0.1862683,80350.0,80348.0,0.0807]
[1731261498646,0.1862683,80359.0,80348.0,0.0807]
[1731261498844,0.12594221,80358.0,80348.0,0.0807]
[1731261500106,0.12594221,80358.0,80338.0,0.005]
[1731261500107,0.1862683,80356.0,80337.0,0.005]
[1731261500310,0.12594221,80355.0,80339.0,0.1]
[1731261500513,0.12594221,80355.0,80339.0,0.105]
[1731261500728,0.1862683,80354.0,80334.0,0.0807]
[1731261501021,0.12594221,80353.0,80334.0,0.0807]
[1731261501238,0.03122105,80352.0,80334.0,0.0807]
[1731261501386,0.03122105,80352.0,80327.0,0.0455]
[1731261501387,0.12594221,80343.0,80327.0,0.0455]
[1731261502020,0.12594221,80343.0,80323.0,0.001406]
[1731261502021,0.12594221,80341.0,80323.0,0.001406]
[1731261504910,0.1862683,80339.0,80323.0,0.001406]
[1731261505116,0.12594221,80338.0,80323.0,0.001406]
[1731261506170,0.12594221,80338.0,80327.0,0.1]
[1731261506496,0.12594221,80338.0,80323.0,0.001406]
[1731261507130,0.12594221,80338.0,80327.0,0.1]
[1731261507773,0.1862683,80337.0,80327.0,0.1]
[1731261507968,0.12594221,80336.0,80323.0,0.001406]
[1731261508330,0.12594221,80336.0,80327.0,0.1]
[1731261508560,0.12594221,80336.0,80323.0,0.001406]
[1731261508760,0.12594221,80336.0,80327.0,0.1]
[1731261509333,0.12594221,80336.0,80323.0,0.001406]
[1731261510619,0.12594221,80336.0,80317.0,0.006408]
[1731261510816,0.12594221,80336.0,80320.0,0.1862683]
[1731261511022,0.12594221,80336.0,80317.0,0.001408]
[1731261511363,0.1862683,80335.0,80317.0,0.001408]
[1731261511521,0.82424221,80334.0,80317.0,0.001408]
[1731261511697,0.82424221,80334.0,80317.0,0.006408]
[1731261512323,0.1862683,80333.0,80317.0,0.002814]
[1731261512524,0.12594221,80332.0,80318.0,0.1]
[1731261512722,0.12594221,80332.0,80315.0,0.002814]
[1731261512950,0.12594221,80332.0,80311.0,0.0455]
[1731261513186,0.1862683,80323.0,80312.0,0.002814]
[1731261513324,0.12594221,80322.0,80311.0,0.0455]
[1731261514953,0.1862683,80321.0,80311.0,0.0455]
[1731261515149,0.12594221,80320.0,80311.0,0.0455]
[1731261516103,0.1862683,80340.0,80318.0,0.002814]
[1731261516401,0.1862683,80322.0,80318.0,0.002814]
[1731261516749,0.12594221,80339.0,80319.0,0.007814]
[1731261516952,0.1862683,80329.0,80319.0,0.007814]
[1731261517124,0.12594221,80339.0,80319.0,0.007814]
[1731261517468,0.1862683,80331.0,80319.0,0.007814]
[1731261517667,0.12594221,80331.0,80319.0,0.007814]
[1731261518141,0.12594221,80331.0,80319.0,0.107814]
[1731261518683,0.12594221,80331.0,80319.0,0.007814]
[1731261518684,0.1862683,80330.0,80319.0,0.007814]
[1731261519577,0.12594221,80331.0,80319.0,0.007814]
[1731261519804,0.12594221,80331.0,80320.0,0.002814]
[1731261520007,0.1862683,80340.0,80320.0,0.002814]
[1731261520008,0.1862683,80340.0,80325.0,0.002814]
[1731261520263,0.12594221,80339.0,80325.0,0.002814]
[1731261520461,0.12594221,80339.0,80325.0,0.007814]
[1731261520664,0.1862683,80368.0,80337.0,0.005]
[1731261520884,0.1862683,80347.0,80341.0,0.002814]
[1731261521551,0.1862683,80368.0,80341.0,0.002814]
[1731261521760,0.1862683,80368.0,80344.0,0.005]
[1731261522174,0.1862683,80347.0,80343.0,0.002814]
[1731261522381,0.1304,80367.0,80343.0,0.002814]
[1731261522604,0.12594221,80347.0,80343.0,0.002814]
[1731261523421,0.12594221,80347.0,80335.0,0.002814]
[1731261523601,0.12594221,80347.0,80343.0,0.002814]
[1731261523867,0.12594221,80347.0,80344.0,0.002814]
[1731261524400,0.12594221,80347.0,80331.0,0.03450947]
[1731261524401,0.12594221,80347.0,80334.0,0.002814]
[1731261524647,0.13870503,80347.0,80336.0,0.002814]
[1731261524855,0.13870503,80347.0,80331.0,0.03450947]
[1731261524856,0.12594221,80347.0,80342.0,0.002814]
[1731261525823,0.1862683,80368.0,80331.0,0.02950947]
[1731261525824,0.1862683,80368.0,80347.0,0.007814]
[1731261526045,0.1862683,80368.0,80347.0,0.056514]
[1731261526298,0.6983,80367.0,80347.0,0.056514]
[1731261526635,0.6983,80367.0,80354.0,0.002814]
[1731261527029,0.1862683,80355.0,80354.0,0.002814]
[1731261527245,0.12594221,80366.0,80352.0,0.002814]
[1731261527417,0.12594221,80366.0,80354.0,0.002814]
[1731261528036,0.6983,80367.0,80358.0,0.007814]
[1731261528259,0.1866683,80414.0,80357.0,0.0783]
[1731261528260,0.1862683,80414.0,80374.0,0.005]
[1731261528462,0.1862683,80414.0,80371.0,0.005]
[1731261528463,0.1862683,80414.0,80376.0,0.005]
[1731261528666,0.002186,80408.0,80376.0,0.005]
[1731261529026,0.002186,80408.0,80372.0,0.002814]
[1731261529027,0.12594221,80377.0,80362.0,0.002814]
[1731261529206,0.12594221,80377.0,80364.0,0.1]
[1731261530279,0.12594221,80377.0,80362.0,0.002814]
[1731261530515,0.12594221,80377.0,80364.0,0.1]
[1731261530827,0.12594221,80377.0,80363.0,0.005]
[1731261532637,0.1862683,80376.0,80363.0,0.005]
[1731261532844,0.12594221,80375.0,80363.0,0.005]
[1731261533051,0.12594221,80375.0,80366.0,0.1]
[1731261533274,0.1862683,80388.0,80369.0,0.005]
[1731261533486,0.1862683,80379.0,80373.0,0.005]
[1731261533715,0.12594221,80385.0,80373.0,0.005]
[1731261533930,0.12594221,80385.0,80375.0,0.007814]
[1731261536078,0.12594221,80385.0,80376.0,0.1862683]
[1731261536284,0.12389721,80385.0,80377.0,0.005]
[1731261539201,0.10089721,80385.0,80377.0,0.005]
[1731261539416,0.002186,80411.0,80377.0,0.005]
[1731261539630,0.12780817,80386.0,80377.0,0.005]
[1731261542571,0.31221051,80385.0,80375.0,0.0297581]
[1731261542776,0.6983,80384.0,80372.0,0.002814]
[1731261543153,0.6983,80384.0,80373.0,0.105]
[1731261543370,0.6983,80384.0,80376.0,0.005]
[1731261544024,0.6983,80384.0,80376.0,0.002814]
[1731261544247,0.31221051,80383.0,80376.0,0.002814]
[1731261544470,0.12594221,80383.0,80376.0,0.002814]
[1731261544672,0.12594221,80383.0,80368.0,0.03021436]
[1731261545151,0.12594221,80383.0,80359.0,0.0537]
[1731261545152,0.12594221,80374.0,80359.0,0.0487]
[1731261545391,0.12594221,80374.0,80364.0,0.1862683]
[1731261545392,0.12594221,80373.0,80364.0,0.1862683]
[1731261545606,0.1862683,80383.0,80344.0,0.0491]
[1731261545607,0.6983,80362.0,80346.0,0.002814]
[1731261545815,0.8287,80366.0,80349.0,0.1862683]
[1731261546038,0.1304,80364.0,80349.0,0.1862683]
[1731261546251,0.1862683,80365.0,80340.0,0.19481043]
[1731261546252,0.25634221,80354.0,80340.0,0.19481043]
[1731261546483,0.25634221,80352.0,80344.0,0.1862683]
[1731261546717,0.25634221,80352.0,80340.0,0.19481043]
[1731261546938,0.12594221,80349.0,80340.0,0.19481043]
[1731261548027,0.25634221,80349.0,80340.0,0.19481043]
[1731261548225,0.25634221,80341.0,80327.0,0.0491]
[1731261548396,0.25634221,80337.0,80328.0,0.1862683]
[1731261548807,0.12594221,80337.0,80327.0,0.0491]
[1731261549453,0.12594221,80337.0,80320.0,0.002814]
[1731261549669,0.12594221,80337.0,80316.0,0.002814]
[1731261549960,0.31221051,80336.0,80315.0,0.0758]
[1731261550130,0.12594221,80326.0,80313.0,0.0491]
[1731261550363,0.12594221,80326.0,80318.0,0.1862683]
[1731261550576,0.12594221,80326.0,80313.0,0.0491]
[1731261550790,0.12594221,80326.0,80317.0,0.003657]
[1731261551008,0.1862683,80342.0,80324.0,0.005]
[1731261551266,0.1862683,80331.0,80325.0,0.0785]
[1731261551486,0.1862683,80342.0,80336.0,0.002814]
[1731261551487,0.31221051,80342.0,80336.0,0.002814]
[1731261551691,0.31221051,80342.0,80337.0,0.0498]
[1731261552136,0.12594221,80342.0,80337.0,0.0498]
[1731261553557,0.31221051,80341.0,80337.0,0.0498]
[1731261553765,0.12594221,80341.0,80337.0,0.0498]
[1731261553973,0.12594221,80341.0,80325.0,0.0785]
[1731261554208,0.12594221,80338.0,80325.0,0.0785]
[1731261554432,0.12594221,80337.0,80321.0,0.0498]
[1731261554642,0.1862683,80340.0,80322.0,0.1862683]
[1731261554643,0.15716326,80336.0,80322.0,0.1862683]
[1731261554837,0.15716326,80336.0,80321.0,0.0498]
[1731261555046,0.1862683,80325.0,80321.0,0.0498]
[1731261555251,0.12594221,80323.0,80317.0,0.000843]
[1731261555476,0.618957,80312.0,80311.0,0.005843]
[1731261555681,0.002186,80350.0,80311.0,0.005843]
[1731261555682,0.1862683,80343.0,80313.0,0.005]
[1731261555904,0.1862683,80329.0,80313.0,0.005]
[1731261556320,0.1862683,80329.0,80318.0,0.005]
[1731261556543,0.1862683,80343.0,80324.0,0.0498]
[1731261556805,0.1862683,80331.0,80324.0,0.0498]
[1731261557090,0.1862683,80343.0,80324.0,0.0498]
[1731261557091,0.12594221,80330.0,80324.0,0.0498]
[1731261557880,0.12594221,80330.0,80325.0,0.000842]
[1731261558295,0.12594221,80326.0,80311.0,0.000843]
[1731261558681,0.12594221,80326.0,80312.0,0.1862683]
[1731261558874,0.12594221,80326.0,80311.0,0.000843]
[1731261558875,0.1862683,80325.0,80311.0,0.000843]
[1731261559055,0.12594221,80324.0,80311.0,0.000843]
[1731261559675,0.03122105,80323.0,80311.0,0.000843]
[1731261559875,0.12594221,80322.0,80311.0,0.000843]
[1731261561443,0.618114,80309.0,80307.0,0.001408]
[1731261561682,0.12594221,80308.0,80307.0,0.001408]
[1731261565175,0.618114,80324.0,80321.0,0.002814]
[1731261565413,0.12594221,80323.0,80321.0,0.002814]
[1731261566007,0.12594221,80323.0,80320.0,0.002814]
[1731261566221,0.618114,80327.0,80321.0,0.002814]
[1731261566427,0.1862683,80338.0,80321.0,0.002814]
[1731261566428,0.618114,80326.0,80324.0,0.005]
[1731261567070,0.12594221,80335.0,80334.0,0.002814]
[1731261567932,0.12594221,80335.0,80333.0,0.002814]
[1731261568197,0.12594221,80335.0,80330.0,0.002814]
[1731261568392,0.12594221,80335.0,80334.0,0.007814]
[1731261568598,0.12594221,80335.0,80334.0,0.002814]
[1731261568832,0.12594221,80335.0,80328.0,0.1]
[1731261569069,0.12594221,80335.0,80328.0,0.102814]
[1731261570254,0.001686,80330.0,80327.0,0.005]
[1731261570805,0.001686,80330.0,80328.0,0.002814]
[1731261571699,0.12594221,80329.0,80325.0,0.0488]
[1731261572557,0.618114,80328.0,80325.0,0.0488]
[1731261572767,0.12594221,80327.0,80325.0,0.0488]
[1731261573189,0.618114,80317.0,80316.0,0.002814]
[1731261573414,0.74405621,80317.0,80316.0,0.002814]
[1731261573856,0.74405621,80317.0,80313.0,0.03536756]
[1731261574058,0.74405621,80317.0,80316.0,0.002814]
[1731261574464,0.74383555,80317.0,80316.0,0.002814]
[1731261574717,0.74383555,80317.0,80314.0,0.002814]
[1731261574918,0.74383555,80317.0,80316.0,0.002814]
[1731261575260,0.60947472,80317.0,80316.0,0.012814]
[1731261575921,0.73541693,80317.0,80313.0,0.005]
[1731261576132,0.73541693,80317.0,80316.0,0.002814]
[1731261577167,0.73541693,80317.0,80313.0,0.005]
[1731261577417,0.73541693,80317.0,80312.0,0.03009627]
[1731261577617,0.12594221,80316.0,80312.0,0.03009627]
[1731261578267,0.12594221,80316.0,80312.0,0.000843]
[1731261578504,0.60863172,80311.0,80309.0,0.0499]
[1731261578740,0.60863172,80311.0,80310.0,0.002814]
[1731261578965,0.60863172,80311.0,80309.0,0.052714]
[1731261579190,0.60863172,80311.0,80310.0,0.002814]
[1731261579623,0.60863172,80311.0,80304.0,0.005844]
[1731261579624,0.25634221,80311.0,80307.0,0.001408]
[1731261579868,0.12594221,80310.0,80307.0,0.001408]
[1731261580901,0.001686,80330.0,80307.0,0.001408]
[1731261580902,0.1862683,80326.0,80316.0,0.002814]
[1731261581121,0.12594221,80325.0,80317.0,0.007814]
[1731261583455,0.12594221,80325.0,80317.0,0.002814]
[1731261584029,0.12594221,80325.0,80316.0,0.0454]
[1731261584237,0.12594221,80325.0,80317.0,0.002814]
[1731261584581,0.12594221,80325.0,80316.0,0.0454]
[1731261585741,0.001686,80330.0,80305.0,0.005]
[1731261585742,0.1304,80323.0,80305.0,0.002814]
[1731261585943,0.1304,80321.0,80309.0,0.1]
[1731261586180,0.25634221,80320.0,80309.0,0.1]
[1731261586375,0.25634221,80320.0,80297.0,0.105]
[1731261586376,0.45176572,80301.0,80297.0,0.105]
[1731261586619,0.45176572,80301.0,80300.0,0.1862683]
[1731261586784,0.45176572,80301.0,80297.0,0.105]
[1731261586939,0.45142279,80301.0,80297.0,0.005]
[1731261587552,0.12594221,80300.0,80293.0,0.005]
[1731261588906,0.45142279,80301.0,80299.0,0.005]
[1731261590054,0.45142279,80301.0,80300.0,0.005]
[1731261590293,0.45142279,80301.0,80300.0,0.007]
[1731261590867,0.45142279,80301.0,80300.0,0.005]
[1731261591436,0.45142279,80301.0,80297.0,0.0468]
[1731261591437,0.45142279,80301.0,80298.0,0.005]
[1731261592679,0.4461364,80301.0,80298.0,0.005]
[1731261592838,0.1862683,80299.0,80289.0,0.005]
[1731261593040,0.3166683,80315.0,80291.0,0.1]
[1731261593041,0.57207861,80298.0,80291.0,0.1]
[1731261593223,0.57207861,80298.0,80289.0,0.005]
[1731261595230,0.1862683,80297.0,80287.0,0.1]
[1731261595437,0.12594221,80296.0,80287.0,0.1]
[1731261595697,0.4461364,80295.0,80287.0,0.1]
[1731261595894,0.12594221,80294.0,80287.0,0.1]
[1731261596343,0.24235788,80286.0,80277.0,0.005]
[1731261596537,0.24235788,80286.0,80275.0,0.0826]
[1731261596538,0.12594221,80285.0,80278.0,0.1862683]
[1731261596750,0.12594221,80285.0,80276.0,0.005]
[1731261597999,0.24235788,80286.0,80285.0,0.005]
[1731261598201,0.23636425,80286.0,80285.0,0.005]
[1731261598393,0.36230646,80286.0,80279.0,0.005]
[1731261598652,0.23636425,80286.0,80281.0,0.005]
[1731261601004,0.23636425,80286.0,80285.0,0.105]
[1731261602350,0.23636425,80286.0,80285.0,0.005]
[1731261604811,0.21336425,80286.0,80277.0,0.005]
[1731261605017,0.1862683,80297.0,80285.0,0.005]
[1731261605199,0.12594221,80296.0,80285.0,0.005]
[1731261606342,0.12594221,80296.0,80289.0,0.1]
[1731261607087,0.12594221,80296.0,80287.0,0.005]
[1731261607311,0.12594221,80296.0,80289.0,0.1]
[1731261607876,0.18814221,80296.0,80289.0,0.1]
[1731261608071,0.18814221,80296.0,80287.0,0.005]
[1731261608477,0.18814221,80296.0,80289.0,0.1]
[1731261609424,0.18814221,80296.0,80287.0,0.005]
[1731261609582,0.0622,80296.0,80295.0,0.005]
[1731261609784,0.0622,80296.0,80295.0,0.0503]
[1731261610965,0.7605,80296.0,80295.0,0.1255]
[1731261611173,0.7605,80296.0,80295.0,0.2275]
[1731261611844,0.5643334,80296.0,80295.0,0.2275]
[1731261612051,0.5643334,80296.0,80295.0,0.36844221]
[1731261613181,0.54519519,80296.0,80295.0,0.39807183]
[1731261613834,0.53800572,80296.0,80295.0,0.39807183]
[1731261614059,0.53284161,80296.0,80295.0,0.39807183]
[1731261615200,0.48984161,80296.0,80295.0,0.39807183]
[1731261615406,0.34043117,80296.0,80295.0,0.39807183]
[1731261615863,0.33511317,80296.0,80295.0,0.39807183]
[1731261616508,0.31772619,80296.0,80295.0,0.77169183]
[1731261616932,1.01602619,80296.0,80295.0,0.77169183]
[1731261617138,1.00748199,80296.0,80295.0,0.77169183]
[1731261617339,1.00201781,80296.0,80295.0,0.77169183]
[1731261618578,0.98463082,80296.0,80295.0,0.77169183]
[1731261618784,0.97984777,80296.0,80295.0,0.77169183]
[1731261618995,0.35845743,80314.0,80313.0,0.007]
[1731261619192,0.08583498,80315.0,80314.0,0.107]
[1731261619400,0.35845743,80323.0,80314.0,0.107]
[1731261619401,0.35845743,80323.0,80322.0,0.002]
[1731261619602,0.35845743,80323.0,80321.0,0.002]
[1731261619802,0.35845743,80323.0,80322.0,0.4735]
[1731261620136,0.35845743,80323.0,80322.0,0.4785]
[1731261620989,0.001686,80325.0,80324.0,0.005]
[1731261621351,0.001686,80325.0,80324.0,0.47849]
[1731261622321,0.12762821,80325.0,80324.0,0.47349]
[1731261622479,0.48608564,80325.0,80324.0,0.47349]
[1731261623441,0.36014343,80325.0,80324.0,0.47849]
[1731261623658,0.001686,80325.0,80324.0,0.74313221]
[1731261623864,0.001686,80325.0,80324.0,0.60719]
[1731261624303,0.001686,80325.0,80324.0,0.60219]
[1731261624512,0.001686,80325.0,80324.0,0.47849]
[1731261625273,0.001686,80325.0,80324.0,0.47166943]
[1731261625494,0.001686,80325.0,80324.0,0.60261164]
[1731261625694,0.001686,80325.0,80324.0,0.61261164]
[1731261625934,0.001686,80325.0,80324.0,0.61461164]
[1731261626139,0.001686,80325.0,80324.0,0.74481164]
[1731261628198,0.001686,80330.0,80329.0,0.022]
[1731261628489,0.1862683,80345.0,80329.0,0.022]
[1731261628490,0.1862683,80345.0,80344.0,0.022]
[1731261628696,0.1862683,80345.0,80344.0,0.24294221]
[1731261628896,0.1862683,80345.0,80344.0,0.62315221]
[1731261629096,0.86,80350.0,80349.0,0.007]
[1731261629505,0.86,80350.0,80349.0,0.48719]
[1731261629943,0.86,80350.0,80349.0,0.48519]
[1731261630159,0.86,80350.0,80349.0,0.48719]